fUSD/lending_fUSD_20260217
["ID","MTS","AMOUNT","RATE_DAILY","PERIOD"]
[405834582,1771349440867,-2250.0,8.792e-05,2]
[405834584,1771349440876,-166.66,8.793e-05,2]
[405834587,1771349440886,-255.0,8.798e-05,2]
[405834589,1771349440896,-32850.4601,8.798e-05,2]
[405834591,1771349440905,-10000.0,8.798e-05,2]
[405834593,1771349440915,-2250.0,8.863e-05,2]
[405834595,1771349440923,-2250.0,8.933e-05,2]
[405834597,1771349440933,-500.0,8.944e-05,2]
[405834599,1771349440942,-343.5,8.944e-05,2]
[405834601,1771349440951,-1600.0,8.983e-05,2]
[405834603,1771349440961,-166.66,9.05e-05,2]
[405834605,1771349440971,-705.7463776,9.075e-05,2]
[405834607,1771349440980,-772.07,9.076e-05,2]
[405834609,1771349440989,-500.0,9.205e-05,2]
[405834611,1771349440998,-500.0,9.205e-05,2]
[405834613,1771349441007,-500.0,9.205e-05,2]
[405834615,1771349441016,-500.0,9.205e-05,2]
[405834617,1771349441026,-500.0,9.205e-05,2]
[405834619,1771349441036,-500.0,9.205e-05,2]
[405834621,1771349441045,-500.0,9.218e-05,2]
[405834623,1771349441054,-1000.0,9.247e-05,2]
[405834625,1771349441063,-500.0,9.26e-05,2]
[405834627,1771349441072,-500.0,9.26e-05,2]
[405834629,1771349441081,-500.0,9.26e-05,2]
[405834631,1771349441091,-500.0,9.26e-05,2]
[405834633,1771349441100,-500.87477363,9.26e-05,2]
[405834635,1771349441109,-500.0,9.26e-05,2]
[405834637,1771349441118,-500.0,9.264e-05,2]
[405834639,1771349441127,-500.0,9.264e-05,2]
[405834641,1771349441137,-150.0,9.264e-05,2]
[405834644,1771349441154,-2351.0,9.281e-05,2]
[405834646,1771349441167,-587.0,9.281e-05,2]
[405834648,1771349441175,-587.0,9.281e-05,2]
[405834650,1771349441185,-378.36591542,9.315e-05,2]
[405834652,1771349441194,-500.0,9.315e-05,2]
[405834654,1771349441204,-500.0,9.315e-05,2]
[405834656,1771349441213,-500.0,9.315e-05,2]
[405834658,1771349441222,-500.0,9.315e-05,2]
[405834660,1771349441231,-500.0,9.319e-05,2]
[405834662,1771349441240,-500.0,9.319e-05,2]
[405834664,1771349441249,-150.0,9.319e-05,2]
[405834666,1771349441258,-500.0,9.369e-05,2]
[405834668,1771349441267,-500.0,9.369e-05,2]
[405834670,1771349441276,-500.0,9.369e-05,2]
[405834686,1771349441623,-500.0,9.369e-05,2]
[405834687,1771349441635,-500.0,9.374e-05,2]
[405834688,1771349441645,-242.84628954,9.374e-05,2]
[405834689,1771349441655,-500.0,9.374e-05,2]
[405834690,1771349441665,-500.0,9.396e-05,2]
[405834691,1771349441674,-500.0,9.396e-05,2]
[405834692,1771349441684,-150.0,9.396e-05,2]
[405834693,1771349441699,-500.0,9.396e-05,2]
[405834694,1771349441708,-150.0,9.396e-05,2]
[405834695,1771349441717,-500.0,9.396e-05,2]
[405834696,1771349441726,-500.0,9.396e-05,2]
[405834697,1771349441735,-500.0,9.396e-05,2]
[405834698,1771349441745,-150.0,9.396e-05,2]
[405834699,1771349441754,-150.0,9.396e-05,2]
[405834700,1771349441763,-150.0,9.396e-05,2]
[405834701,1771349441772,-500.0,9.396e-05,2]
[405834702,1771349441781,-500.0,9.396e-05,2]
[405834703,1771349441796,-150.0,9.396e-05,2]
[405834704,1771349441805,-150.0,9.396e-05,2]
[405834705,1771349441814,-150.0,9.396e-05,2]
[405834706,1771349441824,-150.0,9.396e-05,2]
[405834707,1771349441833,-468.0,9.404e-05,2]
[405834708,1771349441843,-500.0,9.424e-05,2]
[405834709,1771349441851,-475.49905426,9.424e-05,2]
[405834710,1771349441861,-500.0,9.424e-05,2]
[405834711,1771349441870,-382.17209928,9.424e-05,2]
[405834712,1771349441879,-500.0,9.428e-05,2]
[405834713,1771349441888,-500.0,9.428e-05,2]
[405834714,1771349441898,-510.76125773,9.451e-05,2]
[405834715,1771349441908,-500.0,9.451e-05,2]
[405834716,1771349441917,-150.0,9.451e-05,2]
[405834717,1771349441926,-500.0,9.451e-05,2]
[405834718,1771349441935,-500.0,9.451e-05,2]
[405834719,1771349441944,-500.0,9.451e-05,2]
[405834720,1771349441953,-500.0,9.451e-05,2]
[405834721,1771349441962,-150.37957529,9.451e-05,2]
[405834722,1771349441975,-500.0,9.451e-05,2]
[405834723,1771349441985,-500.0,9.451e-05,2]
[405834724,1771349441994,-244.28993987,9.451e-05,2]
[405834725,1771349442003,-150.0,9.451e-05,2]
[405834726,1771349442013,-150.0,9.451e-05,2]
[405834727,1771349442023,-150.0,9.451e-05,2]
[405834728,1771349442032,-13457.98,9.462e-05,2]
[405834729,1771349442044,-500.0,9.479e-05,2]
[405834730,1771349442053,-500.0,9.479e-05,2]
[405834731,1771349442063,-500.0,9.483e-05,2]
[405834732,1771349442072,-153.2248447,9.483e-05,2]
[405834733,1771349442081,-500.0,9.492e-05,2]
[405834734,1771349442091,-1851.22343269,9.497e-05,2]
[405834735,1771349442101,-500.0,9.506e-05,2]
[405834736,1771349442110,-237.18600864,9.506e-05,2]
[405834737,1771349442119,-500.0,9.506e-05,2]
[405834738,1771349442128,-500.0,9.506e-05,2]
[405834739,1771349442138,-500.0,9.506e-05,2]
[405834740,1771349442147,-500.0,9.506e-05,2]
[405834741,1771349442157,-152.12850518,9.506e-05,2]
[405834742,1771349442166,-500.0,9.506e-05,2]
[405834743,1771349442175,-150.0,9.506e-05,2]
[405834744,1771349442186,-200.36674187,9.506e-05,2]
[405834745,1771349442198,-200.18645604,9.506e-05,2]
[405834746,1771349442208,-500.0,9.534e-05,2]
[405834747,1771349442217,-500.0,9.534e-05,2]
[405834748,1771349442226,-500.0,9.538e-05,2]
[405834749,1771349442235,-500.0,9.56e-05,2]
[405834750,1771349442244,-500.0,9.56e-05,2]
[405834751,1771349442254,-500.0,9.56e-05,2]
[405834752,1771349442263,-500.0,9.56e-05,2]
[405834753,1771349442275,-500.0,9.56e-05,2]
[405834754,1771349442287,-500.0,9.56e-05,2]
[405834755,1771349442296,-200.89245722,9.56e-05,2]
[405834756,1771349442307,-500.0,9.589e-05,2]
[405834757,1771349442316,-500.0,9.589e-05,2]
[405834758,1771349442325,-500.0,9.593e-05,2]
[405834759,1771349442336,-500.0,9.615e-05,2]
[405834760,1771349442347,-500.0,9.615e-05,2]
[405834761,1771349442356,-500.0,9.615e-05,2]
[405834762,1771349442366,-471.12228144,9.615e-05,2]
[405834763,1771349442376,-500.0,9.615e-05,2]
[405834764,1771349442385,-500.0,9.615e-05,2]
[405834765,1771349442394,-500.0,9.643e-05,2]
[405834766,1771349442403,-500.0,9.643e-05,2]
[405834767,1771349442413,-500.0,9.648e-05,2]
[405834768,1771349442425,-14381.39,9.67e-05,2]
[405834769,1771349442435,-9999.99,9.67e-05,2]
[405834770,1771349442444,-500.0,9.67e-05,2]
[405834771,1771349442453,-500.0,9.67e-05,2]
[405834772,1771349442465,-500.0,9.67e-05,2]
[405834773,1771349442474,-500.0,9.67e-05,2]
[405834774,1771349442484,-500.0,9.67e-05,2]
[405834775,1771349442494,-433.0,9.678e-05,2]
[405834776,1771349442504,-500.0,9.698e-05,2]
[405834777,1771349442515,-500.0,9.698e-05,2]
[405834778,1771349442523,-500.0,9.702e-05,2]
[405834779,1771349442533,-150.0,9.706e-05,2]
[405834780,1771349442543,-500.0,9.725e-05,2]
[405834781,1771349442557,-500.0,9.725e-05,2]
[405834782,1771349442566,-500.0,9.725e-05,2]
[405834783,1771349442577,-500.0,9.725e-05,2]
[405834784,1771349442586,-630.25617345,9.725e-05,2]
[405834785,1771349442595,-500.0,9.726e-05,2]
[405834786,1771349442605,-150.0,9.726e-05,2]
[405834787,1771349442615,-500.0,9.726e-05,2]
[405834788,1771349442625,-150.0,9.726e-05,2]
[405834789,1771349442635,-200.0,9.726e-05,2]
[405834790,1771349442644,-500.0,9.726e-05,2]
[405834791,1771349442654,-500.0,9.726e-05,2]
[405834792,1771349442665,-500.0,9.726e-05,2]
[405834793,1771349442674,-500.0,9.726e-05,2]
[405834794,1771349442684,-150.0,9.726e-05,2]
[405834795,1771349442694,-546.0,9.726e-05,2]
[405834796,1771349442704,-500.0,9.753e-05,2]
[405834797,1771349442714,-500.0,9.753e-05,2]
[405834798,1771349442724,-500.0,9.757e-05,2]
[405834799,1771349442735,-500.0,9.766e-05,2]
[405834800,1771349442749,-500.0,9.78e-05,2]
[405834801,1771349442759,-500.0,9.78e-05,2]
[405834802,1771349442770,-500.0,9.78e-05,2]
[405834803,1771349442781,-500.0,9.78e-05,2]
[405834804,1771349442796,-500.0,9.781e-05,2]
[405834805,1771349442805,-150.0,9.781e-05,2]
[405834806,1771349442816,-500.0,9.781e-05,2]
[405834807,1771349442827,-150.0,9.781e-05,2]
[405834808,1771349442837,-500.0,9.781e-05,2]
[405834809,1771349442846,-500.0,9.781e-05,2]
[405834810,1771349442855,-500.0,9.781e-05,2]
[405834811,1771349442865,-150.0,9.781e-05,2]
[405834812,1771349442875,-546.0,9.781e-05,2]
[405834813,1771349442885,-500.0,9.781e-05,2]
[405834814,1771349442894,-512.26030593,9.808e-05,2]
[405834815,1771349442904,-500.0,9.808e-05,2]
[405834816,1771349442913,-500.0,9.812e-05,2]
[405834817,1771349442923,-500.0,9.834e-05,2]
[405834818,1771349442932,-500.0,9.834e-05,2]
[405834819,1771349442942,-500.0,9.834e-05,2]
[405834820,1771349442955,-500.0,9.834e-05,2]
[405834821,1771349442964,-329.95129651,9.836e-05,2]
[405834822,1771349442973,-150.0,9.836e-05,2]
[405834823,1771349442982,-500.0,9.836e-05,2]
[405834824,1771349442992,-150.0,9.836e-05,2]
[405834825,1771349443001,-500.0,9.836e-05,2]
[405834827,1771349443010,-500.0,9.836e-05,2]
[405834829,1771349443020,-500.0,9.836e-05,2]
[405834831,1771349443029,-150.0,9.836e-05,2]
[405834833,1771349443039,-546.0,9.836e-05,2]
[405834834,1771349443048,-500.0,9.836e-05,2]
[405834835,1771349443058,-594.68179644,9.863e-05,2]
[405834836,1771349443067,-163.51122534,9.867e-05,2]
[405834837,1771349443076,-259.01,9.884e-05,2]
[405834838,1771349443086,-500.0,9.889e-05,2]
[405834839,1771349443095,-500.0,9.889e-05,2]
[405834840,1771349443104,-500.0,9.889e-05,2]
[405834841,1771349443113,-500.0,9.889e-05,2]
[405834842,1771349443122,-250.53819001,9.89e-05,2]
[405834843,1771349443132,-500.0,9.89e-05,2]
[405834844,1771349443145,-237.36614029,9.89e-05,2]
[405834845,1771349443154,-500.0,9.89e-05,2]
[405834847,1771349443163,-500.0,9.89e-05,2]
[405834848,1771349443173,-500.0,9.89e-05,2]
[405834849,1771349443182,-166.5683879,9.89e-05,2]
[405834850,1771349443191,-546.0,9.89e-05,2]
[405834851,1771349443200,-500.0,9.89e-05,2]
[405834852,1771349443210,-500.0,9.944e-05,2]
[405834854,1771349443220,-642.49812506,9.944e-05,2]
[405834855,1771349443229,-500.0,9.944e-05,2]
[405834856,1771349443239,-500.0,9.944e-05,2]
[405834857,1771349443249,-500.0,9.945e-05,2]
[405834858,1771349443258,-464.38268717,9.945e-05,2]
[405834860,1771349443268,-500.0,9.945e-05,2]
[405834863,1771349443278,-500.0,9.945e-05,2]
[405834864,1771349443289,-546.0,9.945e-05,2]
[405834866,1771349443299,-500.0,9.945e-05,2]
[405834867,1771349443308,-583.69347785,9.98e-05,2]
[405834868,1771349443318,-500.0,9.999e-05,2]
[405834869,1771349443327,-500.0,9.999e-05,2]
[405834870,1771349443339,-500.0,9.999e-05,2]
[405834871,1771349443350,-500.0,0.0001,2]
[405834872,1771349443359,-500.0,0.0001,2]
[405834873,1771349443369,-500.0,0.0001,2]
[405834874,1771349443378,-546.0,0.0001,2]
[405834875,1771349443388,-500.0,0.0001,2]
[405834876,1771349443398,-1000.0,0.0001,2]
[405834877,1771349443408,-543.19683373,0.0001,2]
[405834878,1771349443420,-543.19683373,0.0001,2]
[405834879,1771349443429,-543.19683373,0.0001,2]
[405834880,1771349443439,-920.21,0.0001,2]
[405834881,1771349443449,-151.0,0.0001,2]
[405834882,1771349443461,-151.0,0.0001,2]
[405834883,1771349443470,-151.0,0.0001,2]
[405834884,1771349443480,-151.0,0.0001,2]
[405834885,1771349443491,-151.0,0.0001,2]
[405834886,1771349443500,-151.0,0.0001,2]
[405834887,1771349443510,-151.0,0.0001,2]
[405834888,1771349443519,-151.0,0.0001,2]
[405834889,1771349443529,-151.0,0.0001,2]
[405834890,1771349443541,-151.0,0.0001,2]
[405834891,1771349443551,-151.0,0.0001,2]
[405834892,1771349443561,-151.0,0.0001,2]
[405834893,1771349443571,-151.0,0.0001,2]
[405834894,1771349443581,-151.0,0.0001,2]
[405834895,1771349443590,-151.0,0.0001,2]
[405834896,1771349443600,-151.0,0.0001,2]
[405834897,1771349443610,-151.0,0.0001,2]
[405834898,1771349443620,-151.0,0.0001,2]
[405834899,1771349443629,-151.0,0.0001,2]
[405834900,1771349443639,-151.0,0.0001,2]
[405834901,1771349443649,-151.0,0.0001,2]
[405834902,1771349443658,-151.0,0.0001,2]
[405834903,1771349443668,-151.0,0.0001,2]
[405834904,1771349443678,-151.0,0.0001,2]
[405834905,1771349443688,-151.0,0.0001,2]
[405834906,1771349443698,-175.22048755,0.0001,2]
[405834907,1771349443707,-151.0,0.0001,2]
[405834908,1771349443717,-151.0,0.0001,2]
[405834909,1771349443736,-774.87858036,0.0001,2]
[405834910,1771349443747,-337.0,0.0001,2]
[405834913,1771349443757,-337.0,0.0001,2]
[405834915,1771349443768,-337.85061866,0.0001,2]
[405834917,1771349443778,-153.0,0.0001,3]
[405834919,1771349443789,-1233.6699943,0.0001,2]
[405834921,1771349443799,-1233.6699943,0.0001,2]
[405834923,1771349443809,-500.0,0.0001004,2]
[405834925,1771349443819,-500.0,0.00010054,2]
[405834927,1771349443829,-500.0,0.00010054,2]
[405834929,1771349443839,-500.0,0.00010054,2]
[405834931,1771349443849,-500.0,0.00010055,2]
[405834933,1771349443859,-500.0,0.00010055,2]
[405834935,1771349443869,-500.0,0.00010055,2]
[405834938,1771349443880,-546.0,0.00010055,2]
[405834940,1771349443889,-500.0,0.00010055,2]
[405834942,1771349443899,-1600.0,0.00010106,2]
[405834944,1771349443909,-616.33885806,0.00010108,2]
[405834946,1771349443920,-500.0,0.00010108,2]
[405834947,1771349443930,-500.0,0.00010108,2]
[405834948,1771349443940,-155.81655615,0.0001011,2]
[405834949,1771349443950,-500.0,0.0001011,2]
[405834950,1771349443960,-500.0,0.0001011,2]
[405834951,1771349443970,-546.0,0.0001011,2]
[405834952,1771349443980,-500.0,0.0001011,2]
[405834953,1771349443990,-500.0,0.00010163,2]
[405834954,1771349443999,-500.0,0.00010163,2]
[405834955,1771349444009,-500.0,0.00010164,2]
[405834956,1771349444019,-500.0,0.00010164,2]
[405834958,1771349444029,-546.0,0.00010164,2]
[405834959,1771349444040,-500.0,0.00010164,2]
[405834961,1771349444050,-3292.0,0.00010209,2]
[405834963,1771349444060,-823.0,0.00010209,2]
[405834965,1771349444070,-823.0,0.00010209,2]
[405834967,1771349444079,-500.0,0.00010218,2]
[405834969,1771349444089,-500.0,0.00010218,2]
[405834972,1771349444098,-500.0,0.00010219,2]
[405834974,1771349444108,-500.0,0.00010219,2]
[405834975,1771349444118,-546.0,0.00010219,2]
[405834976,1771349444128,-361.9355564,0.00010219,2]
[405834977,1771349444137,-250.0,0.00010264,2]
[405834978,1771349444147,-481.0942881,0.00010273,2]
[405834979,1771349444157,-500.0,0.00010273,2]
[405834980,1771349444167,-500.0,0.00010274,2]
[405834981,1771349444176,-500.0,0.00010274,2]
[405834982,1771349444185,-546.0,0.00010274,2]
[405834983,1771349444195,-1000.0,0.00010274,2]
[405834984,1771349444204,-920.21,0.00010274,2]
[405834985,1771349444214,-898.32890406,0.00010292,2]
[405834986,1771349444224,-151.0,0.00010293,2]
[405834987,1771349444234,-20355.78997856,0.00010296,2]
[405834988,1771349444243,-500.0,0.00010314,2]
[405834989,1771349444253,-500.0,0.00010328,2]
[405834990,1771349444264,-500.0,0.00010329,2]
[405834991,1771349444273,-498.26652801,0.00010329,2]
[405834992,1771349444284,-546.0,0.00010329,2]
[405834993,1771349444295,-320.0,0.00010382,2]
[405834994,1771349444305,-611.76249723,0.00010384,2]
[405834995,1771349444315,-546.0,0.00010384,2]
[405834996,1771349444325,-546.0,0.00010438,2]
[405834997,1771349444335,-546.0,0.00010493,2]
[405834998,1771349444345,-274.5,0.00010524,2]
[405834999,1771349444354,-546.0,0.00010548,2]
[405835000,1771349444364,-920.21,0.00010548,2]
[405835001,1771349444374,-500.0,0.00010588,2]
[405835002,1771349444385,-546.0,0.00010603,2]
[405835003,1771349444405,-736.0,0.00010645,2]
[405835004,1771349444427,-546.0,0.00010658,2]
[405835005,1771349444443,-546.0,0.00010712,2]
[405835006,1771349444452,-546.0,0.00010767,2]
[405835007,1771349444462,-546.0,0.00010822,2]
[405835008,1771349444472,-920.21,0.00010822,2]
[405835009,1771349444481,-500.0,0.00010862,2]
[405835010,1771349444491,-546.0,0.00010877,2]
[405835011,1771349444502,-3096.24914231,0.000109,2]
[405835012,1771349444512,-3096.24914226,0.000109,2]
[405835013,1771349444522,-3096.24914226,0.000109,2]
[405835014,1771349444532,-546.0,0.00010931,2]
[405835015,1771349444543,-150.0,0.00010959,2]
[405835016,1771349444553,-16891.69,0.00010959,2]
[405835017,1771349444563,-558.2655769,0.00010986,2]
[405835018,1771349444572,-6034.81891893,0.00011,2]
[405835019,1771349444582,-920.21,0.00011096,2]
[405835020,1771349444592,-30601.7884353,0.00011099,2]
[405835021,1771349444602,-30601.78843529,0.00011099,2]
[405835022,1771349444613,-30601.78843529,0.00011099,2]
[405835023,1771349444624,-30601.78843529,0.00011099,2]
[405835024,1771349444634,-30601.78843529,0.00011099,2]
[405835025,1771349444644,-30601.78843529,0.00011099,2]
[405835026,1771349444655,-30601.78843529,0.00011099,2]
[405835027,1771349444666,-30601.78843529,0.00011099,2]
[405835028,1771349444675,-500.0,0.00011136,2]
[405835029,1771349444685,-1600.0,0.00011229,2]
[405835030,1771349444694,-4609.0,0.0001123,2]
[405835031,1771349444704,-1152.0,0.0001123,2]
[405835032,1771349444713,-1152.0,0.0001123,2]
[405835033,1771349444723,-214297.0,0.000113,2]
[405835034,1771349444733,-1000.0,0.00011301,2]
[405835035,1771349444743,-30601.78843529,0.00011338,2]
[405835036,1771349444752,-920.21,0.0001137,2]
[405835037,1771349444763,-500.0,0.0001141,2]
[405835038,1771349444773,-2406.5,0.00011507,2]
[405835039,1771349444783,-5530.0,0.000116,3]
[405835040,1771349444793,-920.21,0.00011644,2]
[405835041,1771349444803,-500.0,0.00011684,2]
[405835042,1771349444813,-1252.0,0.00011709,2]
[405835043,1771349444823,-30601.78843529,0.00011755,2]
[405835044,1771349444832,-152.0,0.00011764,2]
[405835045,1771349444842,-153.0,0.00011764,2]
[405835046,1771349444851,-153.0,0.00011764,2]
[405835047,1771349444862,-153.0,0.00011764,2]
[405835048,1771349444872,-153.0,0.00011764,2]
[405835049,1771349444882,-153.0,0.00011764,2]
[405835050,1771349444891,-153.0,0.00011764,2]
[405835051,1771349444901,-153.0,0.00011764,2]
[405835052,1771349444911,-920.23,0.00011918,2]
[405835053,1771349444921,-500.0,0.00011958,2]
[405835054,1771349444930,-5530.0,0.00012,5]
[405835055,1771349444940,-22360.91,0.00012055,2]
[405835056,1771349444950,-343.5,0.00012072,2]
[405835057,1771349444960,-500.0,0.00012173,2]
[405835058,1771349444970,-500.0,0.00012173,2]
[405835059,1771349444980,-500.0,0.00012173,2]
[405835060,1771349444990,-500.0,0.00012173,2]
[405835061,1771349445000,-500.0,0.00012173,2]
[405835062,1771349445009,-500.0,0.00012173,2]
[405835063,1771349445019,-500.0,0.00012173,2]
[405835064,1771349445028,-500.0,0.00012173,2]
[405835065,1771349445039,-545.77855618,0.00012173,2]
[405835066,1771349445052,-500.0,0.00012173,2]
[405835067,1771349445062,-500.0,0.00012173,2]
[405835068,1771349445071,-164.61380668,0.00012173,2]
[405835069,1771349445081,-500.0,0.00012173,2]
[405835070,1771349445090,-166.78412047,0.00012173,2]
[405835071,1771349445100,-500.0,0.00012173,2]
[405835072,1771349445110,-500.0,0.00012173,2]
[405835073,1771349445119,-500.0,0.00012173,2]
[405835074,1771349445130,-500.0,0.00012173,2]
[405835075,1771349445139,-239.8459294,0.00012173,2]
[405835076,1771349445149,-500.0,0.00012173,2]
[405835077,1771349445159,-500.0,0.00012173,2]
[405835078,1771349445169,-500.0,0.00012173,2]
[405835079,1771349445179,-500.0,0.00012173,2]
[405835080,1771349445189,-218.33608313,0.00012173,2]
[405835081,1771349445199,-500.0,0.00012173,2]
[405835082,1771349445208,-500.0,0.00012173,2]
[405835083,1771349445218,-500.0,0.00012173,2]
[405835084,1771349445227,-160.1837527,0.00012173,2]
[405835085,1771349445237,-500.46642231,0.00012173,2]
[405835086,1771349445247,-500.0,0.00012173,2]
[405835087,1771349445257,-500.0,0.00012173,2]
[405835088,1771349445266,-500.0,0.00012173,2]
[405835089,1771349445276,-500.0,0.00012173,2]
[405835090,1771349445286,-500.0,0.00012173,2]
[405835091,1771349445296,-500.0,0.00012173,2]
[405835092,1771349445306,-500.0,0.00012173,2]
[405835093,1771349445316,-500.0,0.00012232,2]
[405835094,1771349445325,-3096.24914226,0.00012241,2]
[405835095,1771349445335,-1000.0,0.00012329,2]
[405835096,1771349445345,-1600.0,0.00012351,2]
[405835097,1771349445354,-6453.0,0.00012353,2]
[405835098,1771349445364,-407.0,0.00012353,2]
[405835099,1771349445373,-1613.0,0.00012353,2]
[405835100,1771349445383,-4739.43815662,0.000124,2]
[405835101,1771349445393,-774.87858036,0.00012401,2]
[405835102,1771349445402,-66471.6829463,0.00012446,2]
[405835103,1771349445412,-308.39558699,0.000125,2]
[405835104,1771349445427,-500.0,0.00012505,2]
[405835105,1771349445437,-173.355935,0.00012629,2]
[405835106,1771349445448,-1000.0,0.00012721,2]
[405835107,1771349445457,-571.65229745,0.00012721,2]
[405835108,1771349445469,-228.57891647,0.00012721,2]
[405835109,1771349445478,-1002.81524174,0.00012721,2]
[405835110,1771349445489,-1013.94571317,0.00012721,2]
[405835111,1771349445499,-509.22256369,0.00012721,2]
[405835112,1771349445508,-1000.0,0.00012721,2]
[405835113,1771349445518,-1000.0,0.00012721,2]
[405835114,1771349445528,-500.0,0.00012721,2]
[405835115,1771349445537,-1000.0,0.00012721,2]
[405835116,1771349445548,-500.604626,0.00012721,2]
[405835117,1771349445557,-1000.0,0.00012721,2]
[405835118,1771349445567,-503.21146874,0.00012721,2]
[405835119,1771349445576,-608.22588366,0.00012721,2]
[405835120,1771349445586,-544.40507509,0.00012721,2]
[405835121,1771349445595,-1000.0,0.00012721,2]
[405835122,1771349445605,-1013.76878479,0.00012721,2]
[405835123,1771349445615,-1000.0,0.00012721,2]
[405835124,1771349445625,-1000.0,0.00012721,2]
[405835125,1771349445635,-1000.0,0.00012721,2]
[405835126,1771349445645,-928.11420057,0.00012721,2]
[405835127,1771349445657,-306.10762696,0.00012721,2]
[405835128,1771349445668,-1071.24633497,0.00012721,2]
[405835129,1771349445678,-501.82748142,0.00012721,2]
[405835130,1771349445688,-1000.0,0.00012721,2]
[405835131,1771349445698,-1000.0,0.00012721,2]
[405835132,1771349445708,-1000.0,0.00012721,2]
[405835133,1771349445718,-3737.63161,0.0001273,2]
[405835134,1771349445728,-500.0,0.00012779,2]
[405835135,1771349445737,-2129.0,0.00012885,2]
[405835136,1771349445747,-3302.52748916,0.000129,2]
[405835137,1771349445757,-201.65985463,0.000129,2]
[405835138,1771349446085,-6861.7667708,0.000129,2]
[405835139,1771349446098,-119222.30808405,0.000129,2]
[405835140,1771349446108,-160.0,0.00012952,2]
[405835141,1771349446118,-173.57638878,0.00012952,2]
[405835142,1771349446127,-5623.26156693,0.00013,2]
[405835143,1771349446136,-5362.79805645,0.0001305,2]
[405835144,1771349446146,-500.0,0.00013053,2]
[405835145,1771349446155,-66471.6829463,0.00013081,2]
[405835146,1771349446165,-623.71743587,0.00013268,2]
[405835147,1771349446177,-1500.0,0.00013268,2]
[405835148,1771349446187,-500.0,0.00013268,2]
[405835149,1771349446199,-500.0,0.00013268,2]
[405835150,1771349446208,-344.71223806,0.00013268,2]
[405835151,1771349446217,-1500.0,0.00013268,2]
[405835152,1771349446227,-1000.0,0.00013268,2]
[405835153,1771349446236,-500.0,0.00013268,2]
[405835154,1771349446246,-932.93855102,0.00013268,2]
[405835155,1771349446255,-500.0,0.00013268,2]
[405835156,1771349446264,-500.0,0.00013327,2]
[405835157,1771349446275,-1600.0,0.00013474,2]
[405835158,1771349446284,-1000.0,0.000135,2]
[405835159,1771349446294,-9035.0,0.00013588,2]
[405835160,1771349446303,-2258.0,0.00013588,2]
[405835161,1771349446312,-500.0,0.00013601,2]
[405835162,1771349446321,-3096.24914226,0.00013655,2]
[405835163,1771349446330,-500.0,0.00013698,2]
[405835164,1771349446340,-500.0,0.00013698,2]
[405835165,1771349446349,-500.0,0.00013698,2]
[405835166,1771349446360,-321.35543779,0.00013698,2]
[405835167,1771349446370,-500.0,0.00013698,2]
[405835168,1771349446379,-500.0,0.00013698,2]
[405835169,1771349446388,-500.0,0.00013698,2]
[405835170,1771349446398,-500.0,0.00013698,2]
[405835171,1771349446407,-463.4906551,0.00013698,2]
[405835172,1771349446417,-500.0,0.00013698,2]
[405835173,1771349446429,-500.0,0.00013698,2]
[405835174,1771349446438,-500.0,0.00013698,2]
[405835175,1771349446448,-500.0,0.00013698,2]
[405835176,1771349446458,-500.0,0.00013698,2]
[405835177,1771349446467,-500.0,0.00013698,2]
[405835178,1771349446476,-500.0,0.00013698,2]
[405835179,1771349446492,-500.0,0.00013698,2]